[Event "*** SCC Grand Prix: Titled Tuesday Blitz"]
[Site "Chess.com"]
[Date "2020.08.11"]
[Round "5"]
[White "tlomigtlis"]
[Black "Matveev_Vladimir"]
[Result "0-1"]
[WhiteElo "2431"]
[BlackElo "2648"]
[TimeControl "180+1"]
[EndTime "10:55:07 PDT"]
[Termination "Matveev_Vladimir won by checkmate"]

1. d4 {[%clk 0:03:00.9]} 1... Nf6 {[%clk 0:03:00.1]} 2. c4 {[%clk 0:03:00.8]}
2... g6 {[%clk 0:03:00.5]} 3. Nc3 {[%clk 0:03:00.1]} 3... Bg7 {[%clk 0:03:01]}
4. g3 {[%clk 0:03:00.2]} 4... O-O {[%clk 0:03:01.4]} 5. Bg2 {[%clk 0:03:00.6]}
5... d6 {[%clk 0:03:01.9]} 6. Nf3 {[%clk 0:03:01]} 6... Nc6 {[%clk 0:03:01.9]}
7. O-O {[%clk 0:03:01.5]} 7... Bf5 {[%clk 0:03:02.4]} 8. d5 {[%clk 0:02:46.8]}
8... Na5 {[%clk 0:03:01.9]} 9. Nd2 {[%clk 0:02:46.6]} 9... c5 {[%clk 0:02:58]}
10. e4 {[%clk 0:02:43.1]} 10... Bd7 {[%clk 0:02:56.2]} 11. Qc2 {[%clk 0:02:34]}
11... a6 {[%clk 0:02:55.8]} 12. b3 {[%clk 0:02:33.9]} 12... b5 {[%clk
0:02:55.4]} 13. Bb2 {[%clk 0:02:33.3]} 13... Rb8 {[%clk 0:02:55.1]} 14. Rab1
{[%clk 0:02:33]} 14... Qc7 {[%clk 0:02:52.1]} 15. h3 {[%clk 0:02:26]} 15... Rb6
{[%clk 0:02:43.6]} 16. Nd1 {[%clk 0:02:20.7]} 16... Rfb8 {[%clk 0:02:42.8]} 17.
Ne3 {[%clk 0:02:17.2]} 17... bxc4 {[%clk 0:02:32.6]} 18. Ndxc4 {[%clk
0:02:08.1]} 18... Nxc4 {[%clk 0:02:29.6]} 19. Nxc4 {[%clk 0:02:09]} 19... R6b7
{[%clk 0:02:25]} 20. e5 {[%clk 0:02:08.5]} 20... Ne8 {[%clk 0:02:17.1]} 21. e6
{[%clk 0:01:58.2]} 21... fxe6 {[%clk 0:02:13.3]} 22. Bd4 {[%clk 0:01:41.5]}
22... cxd4 {[%clk 0:02:00.3]} 23. dxe6 {[%clk 0:01:41.4]} 23... Bxe6 {[%clk
0:01:55.8]} 24. Bxb7 {[%clk 0:01:39.9]} 24... Rxb7 {[%clk 0:01:56.7]} 25. Qe4
{[%clk 0:01:33.9]} 25... Bxh3 {[%clk 0:01:52]} 26. Rfc1 {[%clk 0:01:33.7]} 26...
Bf5 {[%clk 0:01:50]} 27. Qd5+ {[%clk 0:01:15.5]} 27... e6 {[%clk 0:01:49.3]} 28.
Qf3 {[%clk 0:01:14.9]} 28... Bxb1 {[%clk 0:01:47.2]} 29. Rxb1 {[%clk 0:01:15.8]}
29... d5 {[%clk 0:01:46]} 30. Nb2 {[%clk 0:01:05]} 30... Nd6 {[%clk 0:01:38.2]}
31. Nd3 {[%clk 0:01:03.4]} 31... Ne4 {[%clk 0:01:37]} 32. Re1 {[%clk 0:00:58.7]}
32... Qf7 {[%clk 0:01:34.5]} 33. Qe2 {[%clk 0:00:55]} 33... Rc7 {[%clk
0:01:25.8]} 34. Nb4 {[%clk 0:00:47.6]} 34... a5 {[%clk 0:01:23.4]} 35. Nd3
{[%clk 0:00:47.6]} 35... h5 {[%clk 0:01:21.5]} 36. Nf4 {[%clk 0:00:46.3]} 36...
e5 {[%clk 0:01:19.4]} 37. Nd3 {[%clk 0:00:42.2]} 37... Qf5 {[%clk 0:01:18.4]}
38. Kg2 {[%clk 0:00:39.5]} 38... Rc3 {[%clk 0:01:12.6]} 39. f3 {[%clk
0:00:33.9]} 39... Nxg3 {[%clk 0:01:09.4]} 40. Kxg3 {[%clk 0:00:31.6]} 40... Rxd3
{[%clk 0:01:09]} 41. Rc1 {[%clk 0:00:31.7]} 41... Qf4+ {[%clk 0:01:07.4]} 42.
Kg2 {[%clk 0:00:30.5]} 42... Rd2 {[%clk 0:01:07.6]} 43. Re1 {[%clk 0:00:29.1]}
43... d3 {[%clk 0:01:06.2]} 44. Qf2 {[%clk 0:00:27.5]} 44... Rxf2+ {[%clk
0:01:05.6]} 45. Kxf2 {[%clk 0:00:28.4]} 45... Qd2+ {[%clk 0:01:04.1]} 46. Kf1
{[%clk 0:00:19.3]} 46... Qh2 {[%clk 0:00:55.6]} 47. Rd1 {[%clk 0:00:18.8]} 47...
Qe2+ {[%clk 0:00:55.1]} 48. Kg1 {[%clk 0:00:17.5]} 48... Qxd1+ {[%clk 0:00:56]}
49. Kg2 {[%clk 0:00:18.4]} 49... Qe2+ {[%clk 0:00:56.2]} 50. Kg3 {[%clk
0:00:19.3]} 50... d2 {[%clk 0:00:57.1]} 51. b4 {[%clk 0:00:18.6]} 51... d1=Q
{[%clk 0:00:58]} 52. bxa5 {[%clk 0:00:18.5]} 52... Qxf3+ {[%clk 0:00:58.9]} 53.
Kh2 {[%clk 0:00:18]} 53... Qg4 {[%clk 0:00:59.8]} 54. a6 {[%clk 0:00:17.4]}
54... Qdg1# {[%clk 0:01:00.7]} 0-1

[Event "*** SCC Grand Prix: Titled Tuesday Blitz"]
[Site "Chess.com"]
[Date "2020.08.11"]
[Round "5"]
[White "Fins0905"]
[Black "Srisshhhtea"]
[Result "1-0"]
[WhiteElo "2637"]
[BlackElo "2343"]
[TimeControl "180+1"]
[EndTime "10:55:08 PDT"]
[Termination "Fins0905 won on time"]

1. e4 {[%clk 0:03:00.9]} 1... e6 {[%clk 0:02:59.2]} 2. d3 {[%clk 0:03:00.6]}
2... d5 {[%clk 0:02:57.3]} 3. Nd2 {[%clk 0:03:01]} 3... Nf6 {[%clk 0:02:55.9]}
4. Ngf3 {[%clk 0:03:00.8]} 4... Nc6 {[%clk 0:02:52.7]} 5. c3 {[%clk 0:02:52.5]}
5... e5 {[%clk 0:02:48.6]} 6. Be2 {[%clk 0:02:47.6]} 6... a5 {[%clk 0:02:47.1]}
7. O-O {[%clk 0:02:45.2]} 7... Be7 {[%clk 0:02:45.3]} 8. exd5 {[%clk 0:02:41.4]}
8... Nxd5 {[%clk 0:02:44.4]} 9. Nc4 {[%clk 0:02:40.8]} 9... f6 {[%clk
0:02:35.5]} 10. d4 {[%clk 0:02:39.9]} 10... e4 {[%clk 0:02:30]} 11. Nfd2 {[%clk
0:02:33]} 11... f5 {[%clk 0:02:27.8]} 12. Ne3 {[%clk 0:02:21.5]} 12... Be6
{[%clk 0:02:15.5]} 13. c4 {[%clk 0:02:06.8]} 13... Nxe3 {[%clk 0:02:13.1]} 14.
fxe3 {[%clk 0:02:07.7]} 14... Bd7 {[%clk 0:02:05.5]} 15. c5 {[%clk 0:01:38.5]}
15... Be6 {[%clk 0:01:37]} 16. g4 {[%clk 0:01:03.3]} 16... O-O {[%clk
0:00:59.2]} 17. gxf5 {[%clk 0:00:50]} 17... Bxf5 {[%clk 0:00:49.7]} 18. Bg4
{[%clk 0:00:44]} 18... g6 {[%clk 0:00:17.6]} 19. Bxf5 {[%clk 0:00:36.2]} 19...
gxf5 {[%clk 0:00:18.5]} 20. Qh5 {[%clk 0:00:35.8]} 20... Qd5 {[%clk 0:00:15.7]}
21. Kh1 {[%clk 0:00:30.2]} 21... Nxd4 {[%clk 0:00:13.6]} 22. exd4 {[%clk
0:00:29]} 22... e3+ {[%clk 0:00:12.3]} 23. Qf3 {[%clk 0:00:25.7]} 23... Qxd4
{[%clk 0:00:07.6]} 24. Nb3 {[%clk 0:00:24.9]} 24... Qc4 {[%clk 0:00:06.9]} 25.
Bxe3 {[%clk 0:00:25]} 25... a4 {[%clk 0:00:06.7]} 26. Rg1+ {[%clk 0:00:21.6]}
26... Kh8 {[%clk 0:00:04]} 27. Nd4 {[%clk 0:00:19.3]} 27... f4 {[%clk
0:00:01.2]} 28. Bf2 {[%clk 0:00:18.2]} 1-0

[Event "*** SCC Grand Prix: Titled Tuesday Blitz"]
[Site "Chess.com"]
[Date "2020.08.11"]
[Round "5"]
[White "manuellarrea"]
[Black "Artem_Sadovsky"]
[Result "0-1"]
[WhiteElo "2228"]
[BlackElo "2422"]
[TimeControl "180+1"]
[EndTime "10:55:08 PDT"]
[Termination "Artem_Sadovsky won by resignation"]

1. e4 {[%clk 0:03:00.9]} 1... c6 {[%clk 0:02:48.9]} 2. d4 {[%clk 0:02:59]} 2...
d5 {[%clk 0:02:49.4]} 3. exd5 {[%clk 0:02:58.3]} 3... cxd5 {[%clk 0:02:49.9]} 4.
c4 {[%clk 0:02:58.1]} 4... Nf6 {[%clk 0:02:49.2]} 5. Nc3 {[%clk 0:02:57.1]} 5...
e6 {[%clk 0:02:49.8]} 6. Nf3 {[%clk 0:02:55.3]} 6... Nc6 {[%clk 0:02:50.4]} 7.
c5 {[%clk 0:02:51.8]} 7... Be7 {[%clk 0:02:48.6]} 8. a3 {[%clk 0:02:46.8]} 8...
O-O {[%clk 0:02:49.1]} 9. Bd3 {[%clk 0:02:44.6]} 9... Nxd4 {[%clk 0:02:45.4]}
10. Nxd4 {[%clk 0:02:42]} 10... Bxc5 {[%clk 0:02:45.9]} 11. Nb3 {[%clk
0:02:40.2]} 11... Bxf2+ {[%clk 0:02:38]} 12. Kxf2 {[%clk 0:02:37.9]} 12... e5
{[%clk 0:02:38.4]} 13. Be2 {[%clk 0:02:18]} 13... Qb6+ {[%clk 0:02:34.5]} 14.
Ke1 {[%clk 0:02:05.4]} 14... d4 {[%clk 0:02:29.1]} 15. Na4 {[%clk 0:01:57.4]}
15... Qc6 {[%clk 0:02:29.5]} 16. Nac5 {[%clk 0:01:51.1]} 16... Qxg2 {[%clk
0:01:52.8]} 17. Bf3 {[%clk 0:01:49.3]} 17... Qh3 {[%clk 0:01:53.1]} 18. Bg5
{[%clk 0:01:43.3]} 18... Bg4 {[%clk 0:01:52.7]} 19. Rf1 {[%clk 0:01:29.1]} 19...
e4 {[%clk 0:01:07.5]} 20. Bxf6 {[%clk 0:01:28.3]} 20... exf3 {[%clk 0:01:06.1]}
21. Qxd4 {[%clk 0:01:15.8]} 21... Rfe8+ {[%clk 0:00:55.9]} 22. Kd2 {[%clk
0:01:13]} 22... gxf6 {[%clk 0:00:55]} 23. Qxf6 {[%clk 0:00:58.2]} 23... Re2+
{[%clk 0:00:33.8]} 24. Kc3 {[%clk 0:00:53.9]} 24... f2+ {[%clk 0:00:32.3]} 25.
Kb4 {[%clk 0:00:43.4]} 25... a5+ {[%clk 0:00:32.1]} 26. Nxa5 {[%clk 0:00:33.9]}
26... Qe3 {[%clk 0:00:32.8]} 27. Nab3 {[%clk 0:00:19.3]} 27... b6 {[%clk
0:00:24.7]} 28. Qxb6 {[%clk 0:00:17.6]} 28... Rxb2 {[%clk 0:00:21]} 29. Rac1
{[%clk 0:00:11.1]} 29... Rxb3+ {[%clk 0:00:21.1]} 0-1

[Event "*** SCC Grand Prix: Titled Tuesday Blitz"]
[Site "Chess.com"]
[Date "2020.08.11"]
[Round "5"]
[White "VladimirBugayev"]
[Black "kngopal"]
[Result "1-0"]
[WhiteElo "2343"]
[BlackElo "2180"]
[TimeControl "180+1"]
[EndTime "10:55:08 PDT"]
[Termination "VladimirBugayev won by resignation"]

1. e4 {[%clk 0:03:00.9]} 1... d6 {[%clk 0:02:56.9]} 2. d4 {[%clk 0:03:00]} 2...
g6 {[%clk 0:02:56.5]} 3. Nc3 {[%clk 0:03:00.4]} 3... Bg7 {[%clk 0:02:56.6]} 4.
Be3 {[%clk 0:02:57.8]} 4... Nd7 {[%clk 0:02:52.2]} 5. f4 {[%clk 0:02:55.6]} 5...
e6 {[%clk 0:02:43.9]} 6. Nf3 {[%clk 0:02:53.6]} 6... Ne7 {[%clk 0:02:43.9]} 7.
h4 {[%clk 0:02:42.1]} 7... h5 {[%clk 0:02:39.8]} 8. Qd2 {[%clk 0:02:31.1]} 8...
d5 {[%clk 0:02:38.8]} 9. O-O-O {[%clk 0:01:58.4]} 9... c6 {[%clk 0:02:13.3]} 10.
Ne5 {[%clk 0:01:55.5]} 10... Nxe5 {[%clk 0:02:08.1]} 11. fxe5 {[%clk 0:01:52.6]}
11... b5 {[%clk 0:01:55]} 12. Bd3 {[%clk 0:01:35.5]} 12... b4 {[%clk 0:01:26]}
13. Na4 {[%clk 0:01:27.2]} 13... dxe4 {[%clk 0:01:24.6]} 14. Bxe4 {[%clk
0:01:26.6]} 14... Nd5 {[%clk 0:01:24.2]} 15. Bxd5 {[%clk 0:01:04.3]} 15... Qxd5
{[%clk 0:01:23]} 16. Qxb4 {[%clk 0:00:59.6]} 16... Qxa2 {[%clk 0:01:15.8]} 17.
Nc3 {[%clk 0:00:54.6]} 17... Qa1+ {[%clk 0:01:08.9]} 18. Kd2 {[%clk 0:00:54.4]}
18... Qa6 {[%clk 0:01:08.6]} 19. Bg5 {[%clk 0:00:51.2]} 19... Bf8 {[%clk
0:01:07.3]} 20. Qa4 {[%clk 0:00:44.8]} 20... Qb6 {[%clk 0:01:01.3]} 21. Bf6
{[%clk 0:00:43]} 21... Rg8 {[%clk 0:00:51.3]} 22. Qa2 {[%clk 0:00:41.8]} 22...
Qxd4+ {[%clk 0:00:47.9]} 23. Kc1 {[%clk 0:00:40.7]} 23... Qe3+ {[%clk
0:00:38.4]} 24. Kb1 {[%clk 0:00:40.4]} 24... Be7 {[%clk 0:00:27.6]} 25. Bxe7
{[%clk 0:00:36.9]} 25... Kxe7 {[%clk 0:00:27.7]} 26. Qa3+ {[%clk 0:00:36.7]}
26... Ke8 {[%clk 0:00:19.1]} 27. Qd6 {[%clk 0:00:35]} 27... Bb7 {[%clk 0:00:17]}
28. Qd7+ {[%clk 0:00:35]} 28... Kf8 {[%clk 0:00:17.1]} 29. Qxb7 {[%clk
0:00:34.9]} 29... Re8 {[%clk 0:00:16.5]} 30. Rhf1 {[%clk 0:00:26.8]} 30... Re7
{[%clk 0:00:13.9]} 31. Rd8+ {[%clk 0:00:25.9]} 31... Kg7 {[%clk 0:00:11.4]} 32.
Rxg8+ {[%clk 0:00:25.3]} 1-0

[Event "*** SCC Grand Prix: Titled Tuesday Blitz"]
[Site "Chess.com"]
[Date "2020.08.11"]
[Round "5"]
[White "memer5334"]
[Black "JRenatoMaranhao"]
[Result "0-1"]
[WhiteElo "2216"]
[BlackElo "2053"]
[TimeControl "180+1"]
[EndTime "10:55:10 PDT"]
[Termination "JRenatoMaranhao won by checkmate"]

1. d4 {[%clk 0:03:00.9]} 1... Nf6 {[%clk 0:03:00]} 2. c4 {[%clk 0:02:59.8]} 2...
g6 {[%clk 0:03:00.1]} 3. Nc3 {[%clk 0:02:57.6]} 3... Bg7 {[%clk 0:03:00.3]} 4.
Nf3 {[%clk 0:02:56.4]} 4... d5 {[%clk 0:02:59.1]} 5. cxd5 {[%clk 0:02:52.4]}
5... Nxd5 {[%clk 0:03:00]} 6. e3 {[%clk 0:02:47.4]} 6... O-O {[%clk 0:02:58.8]}
7. Bd3 {[%clk 0:02:47.1]} 7... c5 {[%clk 0:02:56.5]} 8. O-O {[%clk 0:02:45.4]}
8... Nc6 {[%clk 0:02:54.9]} 9. Nxd5 {[%clk 0:02:43.3]} 9... Qxd5 {[%clk
0:02:54.2]} 10. e4 {[%clk 0:02:38.9]} 10... Qh5 {[%clk 0:02:43.7]} 11. d5 {[%clk
0:02:36.6]} 11... Nd4 {[%clk 0:02:31.4]} 12. Nxd4 {[%clk 0:02:31.7]} 12... Qxd1
{[%clk 0:02:32.3]} 13. Rxd1 {[%clk 0:02:30.9]} 13... Bxd4 {[%clk 0:02:31]} 14.
Bh6 {[%clk 0:02:28.1]} 14... Bxb2 {[%clk 0:02:22.9]} 15. Bxf8 {[%clk 0:02:26.4]}
15... Kxf8 {[%clk 0:02:18.4]} 16. Rab1 {[%clk 0:02:20.6]} 16... Bd4 {[%clk
0:02:16.8]} 17. Kf1 {[%clk 0:02:16.5]} 17... a6 {[%clk 0:01:56.3]} 18. a4 {[%clk
0:02:14.1]} 18... e5 {[%clk 0:00:54.7]} 19. Bc4 {[%clk 0:02:07.6]} 19... Ke7
{[%clk 0:00:42.1]} 20. Rb6 {[%clk 0:01:47.8]} 20... f5 {[%clk 0:00:27.6]} 21. f3
{[%clk 0:01:44.1]} 21... f4 {[%clk 0:00:27.3]} 22. d6+ {[%clk 0:01:31.6]} 22...
Kd7 {[%clk 0:00:17.4]} 23. Bd5 {[%clk 0:01:32]} 23... Ra7 {[%clk 0:00:15.1]} 24.
Bc4 {[%clk 0:01:26.2]} 24... Kd8 {[%clk 0:00:11]} 25. Rdb1 {[%clk 0:01:26.3]}
25... Bd7 {[%clk 0:00:09.1]} 26. Rxb7 {[%clk 0:01:23.8]} 26... Rxb7 {[%clk
0:00:08.7]} 27. Rxb7 {[%clk 0:01:22]} 27... Bxa4 {[%clk 0:00:09]} 28. Bxa6
{[%clk 0:01:20.6]} 28... h5 {[%clk 0:00:03.7]} 29. Rg7 {[%clk 0:01:17.4]} 29...
Bb3 {[%clk 0:00:03.4]} 30. Bb5 {[%clk 0:01:16.2]} 30... c4 {[%clk 0:00:02.9]}
31. Rd7+ {[%clk 0:01:15.7]} 31... Kc8 {[%clk 0:00:02.6]} 32. Bxc4 {[%clk
0:01:14.1]} 32... Bxc4+ {[%clk 0:00:02.4]} 33. Ke1 {[%clk 0:01:14.1]} 33... Kxd7
{[%clk 0:00:02.9]} 34. h3 {[%clk 0:01:11.8]} 34... Kxd6 {[%clk 0:00:03.8]} 35.
Kd2 {[%clk 0:01:12]} 35... Kc5 {[%clk 0:00:04.4]} 36. h4 {[%clk 0:01:12.5]}
36... Kb4 {[%clk 0:00:04.6]} 37. Kc2 {[%clk 0:01:13.4]} 37... Bf1 {[%clk
0:00:04.7]} 38. Kd2 {[%clk 0:01:14.3]} 38... Bxg2 {[%clk 0:00:04.7]} 39. Ke2
{[%clk 0:01:13.8]} 39... Kc3 {[%clk 0:00:05.6]} 40. Ke1 {[%clk 0:01:13.7]} 40...
Bxf3 {[%clk 0:00:06]} 41. Kf1 {[%clk 0:01:13.3]} 41... Bxe4 {[%clk 0:00:06.6]}
42. Ke2 {[%clk 0:01:12.9]} 42... Bf5 {[%clk 0:00:07.1]} 43. Kf3 {[%clk
0:01:13.1]} 43... e4+ {[%clk 0:00:06.8]} 44. Kxf4 {[%clk 0:01:12.2]} 44... e3
{[%clk 0:00:07.7]} 45. Kf3 {[%clk 0:01:12.8]} 45... Kd2 {[%clk 0:00:07.6]} 46.
Kg2 {[%clk 0:01:12.9]} 46... e2 {[%clk 0:00:07.9]} 47. Kf3 {[%clk 0:01:11.7]}
47... Ba1 {[%clk 0:00:08.8]} 48. Kf4 {[%clk 0:01:09.9]} 48... Bb1 {[%clk
0:00:09.7]} 49. Kf3 {[%clk 0:01:09.4]} 49... Bb2 {[%clk 0:00:10.6]} 50. Kf4
{[%clk 0:01:08.8]} 50... Ba2 {[%clk 0:00:11.5]} 51. Kg5 {[%clk 0:01:08.9]} 51...
e1=Q {[%clk 0:00:12.4]} 52. Kh6 {[%clk 0:01:09]} 52... Ke3 {[%clk 0:00:11.7]}
53. Kg5 {[%clk 0:01:08.7]} 53... Bc1 {[%clk 0:00:11.5]} 54. Kh6 {[%clk
0:01:08.9]} 54... Qf2 {[%clk 0:00:10.6]} 55. Kh7 {[%clk 0:01:09.5]} 55... Qf7+
{[%clk 0:00:10.3]} 56. Kh6 {[%clk 0:01:09.6]} 56... Ke4# {[%clk 0:00:10.7]} 0-1

[Event "*** SCC Grand Prix: Titled Tuesday Blitz"]
[Site "Chess.com"]
[Date "2020.08.11"]
[Round "5"]
[White "alfiefischer77"]
[Black "GustavoJuarezF"]
[Result "1-0"]
[WhiteElo "2288"]
[BlackElo "2024"]
[TimeControl "180+1"]
[EndTime "10:55:11 PDT"]
[Termination "alfiefischer77 won on time"]

1. e4 {[%clk 0:03:00.9]} 1... c5 {[%clk 0:02:59.9]} 2. Nf3 {[%clk 0:02:55.2]}
2... Nc6 {[%clk 0:02:59.4]} 3. d4 {[%clk 0:02:51.2]} 3... cxd4 {[%clk
0:02:58.9]} 4. Nxd4 {[%clk 0:02:51.5]} 4... Nf6 {[%clk 0:02:59.1]} 5. Nc3 {[%clk
0:02:43]} 5... e5 {[%clk 0:02:58.8]} 6. Ndb5 {[%clk 0:02:39.8]} 6... d6 {[%clk
0:02:57.8]} 7. Bg5 {[%clk 0:02:35.6]} 7... a6 {[%clk 0:02:57.5]} 8. Bxf6 {[%clk
0:02:33]} 8... gxf6 {[%clk 0:02:56.3]} 9. Na3 {[%clk 0:02:25.5]} 9... b5 {[%clk
0:02:55.2]} 10. Nd5 {[%clk 0:02:25.7]} 10... Bg7 {[%clk 0:02:51.3]} 11. Be2
{[%clk 0:02:16.9]} 11... f5 {[%clk 0:02:49.9]} 12. exf5 {[%clk 0:02:01.1]} 12...
Bxf5 {[%clk 0:02:48.2]} 13. c3 {[%clk 0:01:58.5]} 13... Rc8 {[%clk 0:02:41.9]}
14. O-O {[%clk 0:01:58]} 14... Be6 {[%clk 0:02:35.2]} 15. Nc2 {[%clk 0:01:57]}
15... O-O {[%clk 0:02:28.7]} 16. a4 {[%clk 0:01:42.1]} 16... bxa4 {[%clk
0:02:10.4]} 17. Bxa6 {[%clk 0:01:32.7]} 17... Rb8 {[%clk 0:02:09.5]} 18. Ncb4
{[%clk 0:01:16.5]} 18... Nxb4 {[%clk 0:02:08.2]} 19. Nxb4 {[%clk 0:01:17.4]}
19... Bb3 {[%clk 0:02:03.2]} 20. Qf3 {[%clk 0:01:01.9]} 20... Qb6 {[%clk
0:02:01.2]} 21. Bd3 {[%clk 0:00:49.5]} 21... Qc5 {[%clk 0:01:46.6]} 22. Qf5
{[%clk 0:00:44]} 22... f6 {[%clk 0:01:40.3]} 23. Qxh7+ {[%clk 0:00:40.9]} 23...
Kf7 {[%clk 0:01:39.6]} 24. Na6 {[%clk 0:00:38]} 24... Rh8 {[%clk 0:01:27.2]} 25.
Qg6+ {[%clk 0:00:36.4]} 25... Kf8 {[%clk 0:00:38.8]} 26. Nxc5 {[%clk 0:00:37.3]}
26... dxc5 {[%clk 0:00:37.9]} 27. Bc2 {[%clk 0:00:25.4]} 27... Rh6 {[%clk
0:00:37.9]} 28. Qe4 {[%clk 0:00:21.6]} 28... Be6 {[%clk 0:00:21]} 29. Rxa4
{[%clk 0:00:19.3]} 29... f5 {[%clk 0:00:21.3]} 30. Qc6 {[%clk 0:00:17.1]} 30...
Bb3 {[%clk 0:00:18.4]} 31. Qxc5+ {[%clk 0:00:15.8]} 1-0

[Event "*** SCC Grand Prix: Titled Tuesday Blitz"]
[Site "Chess.com"]
[Date "2020.08.11"]
[Round "5"]
[White "dpopadic"]
[Black "wild_cat99"]
[Result "0-1"]
[WhiteElo "2423"]
[BlackElo "2629"]
[TimeControl "180+1"]
[EndTime "10:55:12 PDT"]
[Termination "wild_cat99 won on time"]

1. e4 {[%clk 0:03:00.9]} 1... c5 {[%clk 0:02:59.9]} 2. Nc3 {[%clk 0:03:00.9]}
2... e6 {[%clk 0:02:59.6]} 3. d3 {[%clk 0:03:00.1]} 3... a6 {[%clk 0:02:59.7]}
4. g4 {[%clk 0:03:00.1]} 4... b5 {[%clk 0:02:56.1]} 5. Bg2 {[%clk 0:03:00]} 5...
Bb7 {[%clk 0:02:56.5]} 6. Nh3 {[%clk 0:03:00]} 6... Ne7 {[%clk 0:02:46.3]} 7.
O-O {[%clk 0:02:58.5]} 7... g6 {[%clk 0:02:45.1]} 8. Be3 {[%clk 0:02:54.5]} 8...
d6 {[%clk 0:02:43.5]} 9. f4 {[%clk 0:02:44.6]} 9... d5 {[%clk 0:02:34.2]} 10.
Bxc5 {[%clk 0:02:36.6]} 10... Nd7 {[%clk 0:02:13.5]} 11. Bxe7 {[%clk 0:02:28.6]}
11... Bxe7 {[%clk 0:02:14.4]} 12. exd5 {[%clk 0:02:27.9]} 12... Qb6+ {[%clk
0:02:13.8]} 13. Kh1 {[%clk 0:02:17.4]} 13... h5 {[%clk 0:02:06.8]} 14. g5 {[%clk
0:02:08.7]} 14... b4 {[%clk 0:02:04.3]} 15. dxe6 {[%clk 0:02:03.3]} 15... Bxg2+
{[%clk 0:02:01.5]} 16. Kxg2 {[%clk 0:02:02.8]} 16... Qxe6 {[%clk 0:02:01.6]} 17.
Ne4 {[%clk 0:01:47]} 17... a5 {[%clk 0:01:43.9]} 18. Re1 {[%clk 0:01:34.2]}
18... Qc6 {[%clk 0:01:27.3]} 19. Qf3 {[%clk 0:01:29.7]} 19... Rc8 {[%clk
0:01:25.4]} 20. Re2 {[%clk 0:01:22.2]} 20... a4 {[%clk 0:01:21.6]} 21. Rae1
{[%clk 0:01:06.2]} 21... O-O {[%clk 0:01:20.8]} 22. Nhf2 {[%clk 0:00:53]} 22...
f6 {[%clk 0:01:12.9]} 23. Nxf6+ {[%clk 0:00:42.6]} 23... Nxf6 {[%clk 0:01:13.8]}
24. Qxc6 {[%clk 0:00:39]} 24... Rxc6 {[%clk 0:01:11.2]} 25. gxf6 {[%clk
0:00:22.7]} 25... Bxf6 {[%clk 0:01:12.1]} 26. b3 {[%clk 0:00:21.4]} 26... axb3
{[%clk 0:01:11]} 27. cxb3 {[%clk 0:00:20]} 27... Bc3 {[%clk 0:01:03.4]} 28. Re6
{[%clk 0:00:17.6]} 28... Rxf4 {[%clk 0:00:56.2]} 29. Rxc6 {[%clk 0:00:14.5]}
29... Bxe1 {[%clk 0:00:56.2]} 30. Ne4 {[%clk 0:00:13.7]} 30... Kg7 {[%clk
0:00:49.6]} 31. Rc7+ {[%clk 0:00:11.6]} 31... Kh6 {[%clk 0:00:47]} 32. Rc4
{[%clk 0:00:09.3]} 32... h4 {[%clk 0:00:37.9]} 33. Nc5 {[%clk 0:00:03.7]} 33...
Rf2+ {[%clk 0:00:35.7]} 34. Kh3 {[%clk 0:00:03.1]} 34... g5 {[%clk 0:00:35.7]}
35. Ne4 {[%clk 0:00:01.8]} 35... Rxa2 {[%clk 0:00:34.9]} 36. Nf6 {[%clk
0:00:01.1]} 36... Rd2 {[%clk 0:00:30.4]} 0-1

[Event "*** SCC Grand Prix: Titled Tuesday Blitz"]
[Site "Chess.com"]
[Date "2020.08.11"]
[Round "5"]
[White "GlennTipton"]
[Black "peixe64"]
[Result "1-0"]
[WhiteElo "2454"]
[BlackElo "2315"]
[TimeControl "180+1"]
[EndTime "10:55:12 PDT"]
[Termination "GlennTipton won by checkmate"]

1. d4 {[%clk 0:03:00]} 1... Nf6 {[%clk 0:03:00.1]} 2. Nf3 {[%clk 0:02:59.7]}
2... g6 {[%clk 0:03:00.4]} 3. Bf4 {[%clk 0:02:58.8]} 3... Bg7 {[%clk 0:03:00.1]}
4. e3 {[%clk 0:02:59.7]} 4... O-O {[%clk 0:03:00.1]} 5. h3 {[%clk 0:03:00]} 5...
d6 {[%clk 0:03:00.8]} 6. Be2 {[%clk 0:03:00.4]} 6... b6 {[%clk 0:03:01.3]} 7.
O-O {[%clk 0:03:00.9]} 7... Bb7 {[%clk 0:03:01.5]} 8. c4 {[%clk 0:02:59.8]} 8...
Nbd7 {[%clk 0:03:01.7]} 9. Nc3 {[%clk 0:02:59.2]} 9... Qe8 {[%clk 0:02:53.4]}
10. Bh2 {[%clk 0:02:58.6]} 10... a6 {[%clk 0:02:49.4]} 11. b4 {[%clk 0:02:55.1]}
11... e5 {[%clk 0:02:36.8]} 12. Qb3 {[%clk 0:02:50.4]} 12... Qe7 {[%clk
0:02:27.9]} 13. c5 {[%clk 0:02:35.6]} 13... e4 {[%clk 0:01:53.2]} 14. cxd6
{[%clk 0:02:20.8]} 14... cxd6 {[%clk 0:01:52.2]} 15. Nd2 {[%clk 0:02:21]} 15...
Rfd8 {[%clk 0:01:38.3]} 16. Rac1 {[%clk 0:02:08.8]} 16... Rac8 {[%clk
0:01:22.3]} 17. Bc4 {[%clk 0:01:57.9]} 17... b5 {[%clk 0:01:16.3]} 18. Nd5
{[%clk 0:01:56.7]} 18... Qe8 {[%clk 0:01:04.5]} 19. Nxf6+ {[%clk 0:01:51.7]}
19... Nxf6 {[%clk 0:01:04.5]} 20. Be2 {[%clk 0:01:47.9]} 20... Nd5 {[%clk
0:01:04.8]} 21. Rxc8 {[%clk 0:01:41.9]} 21... Rxc8 {[%clk 0:01:05.7]} 22. Bxd6
{[%clk 0:01:41.3]} 22... Rc3 {[%clk 0:01:04.4]} 23. Qb2 {[%clk 0:01:40.8]} 23...
Rc6 {[%clk 0:00:48.4]} 24. Bc5 {[%clk 0:01:35.8]} 24... Qd7 {[%clk 0:00:46]} 25.
Nb3 {[%clk 0:01:35.7]} 25... f5 {[%clk 0:00:43.3]} 26. Na5 {[%clk 0:01:33.9]}
26... Re6 {[%clk 0:00:40.2]} 27. Nxb7 {[%clk 0:01:33.3]} 27... Qxb7 {[%clk
0:00:41.1]} 28. a4 {[%clk 0:01:31.6]} 28... f4 {[%clk 0:00:37.3]} 29. axb5
{[%clk 0:01:29.7]} 29... axb5 {[%clk 0:00:37.2]} 30. Qb3 {[%clk 0:01:25.1]}
30... Kh8 {[%clk 0:00:28.8]} 31. Bxb5 {[%clk 0:01:22]} 31... fxe3 {[%clk
0:00:21.6]} 32. fxe3 {[%clk 0:01:20.5]} 32... Rf6 {[%clk 0:00:14.4]} 33. Rxf6
{[%clk 0:01:11.4]} 33... Bxf6 {[%clk 0:00:15.3]} 34. Bc4 {[%clk 0:01:10.9]}
34... Nc7 {[%clk 0:00:15.8]} 35. b5 {[%clk 0:01:04.2]} 35... Qa8 {[%clk
0:00:16.1]} 36. Qa3 {[%clk 0:01:02.2]} 36... Qc8 {[%clk 0:00:13.5]} 37. b6
{[%clk 0:00:59.2]} 37... Ne8 {[%clk 0:00:13.1]} 38. Bd5 {[%clk 0:00:55.6]} 38...
Qb8 {[%clk 0:00:11.6]} 39. Qa8 {[%clk 0:00:52.3]} 39... Qg3 {[%clk 0:00:12]} 40.
Qxe8+ {[%clk 0:00:50.9]} 40... Kg7 {[%clk 0:00:12.6]} 41. Qf8# {[%clk 0:00:51]}
1-0